bitfinex-derivatives/quotes_SOLF0:USTF0_20241211
["timestamp","ask_amount","ask_price","bid_price","bid_amount"]
[1733951454045,8.60275695,228.49,228.45,2.1858]
[1733951454244,8.60275695,228.49,228.44,6.44275695]
[1733951454645,8.60275695,228.49,228.46,2.1857]
[1733951455040,5.15025519,228.53,228.48,6.44275695]
[1733951455250,2.16,228.52,228.5,2.1854]
[1733951455847,2.16,228.52,228.46,6.44275695]
[1733951456150,6.44275695,228.51,228.48,2.1855]
[1733951456754,6.44275695,228.49,228.48,2.1855]
[1733951457154,6.44275695,228.51,228.48,2.1855]
[1733951458054,6.44275695,228.51,228.49,2.1855]
[1733951461247,5.2398302,228.54,228.46,6.44275695]
[1733951461551,2.16,228.53,228.51,2.1852]
[1733951461956,4.1019,228.6,228.48,6.44275695]
[1733951462153,6.44275695,228.56,228.53,2.1851]
[1733951462358,2.16,228.56,228.53,2.1851]
[1733951462854,4.3447,228.57,228.52,6.44275695]
[1733951464159,2.16,228.57,228.54,2.1849]
[1733951467454,8.62735695,228.58,228.52,6.44275695]
[1733951467650,2.16,228.57,228.55,2.1849]
[1733951468055,2.16,228.57,228.52,6.44275695]
[1733951468257,2.16,228.57,228.54,2.185]
[1733951469861,2.16,228.57,228.55,2.1849]
[1733951470561,2.1846,228.59,228.56,2.1848]
[1733951470856,2.16,228.61,228.56,6.44275695]
[1733951472361,2.1842,228.64,228.6,2.1844]
[1733951472663,8.60275695,228.65,228.58,6.44275695]
[1733951472861,8.60275695,228.65,228.6,6.44275695]
[1733951473767,10.78675695,228.65,228.62,2.1842]
[1733951474468,8.62675695,228.65,228.62,2.1842]
[1733951475768,2.184,228.65,228.62,2.1842]
[1733951480379,8.62675695,228.65,228.62,2.1842]
[1733951480579,2.1842,228.63,228.6,2.1844]
[1733951480779,6.44275695,228.63,228.54,4.2813]
[1733951481077,6.44275695,228.63,228.56,6.44275695]
[1733951481675,2.1844,228.61,228.58,2.1846]
[1733951483374,2.1844,228.61,228.56,6.44275695]
[1733951483375,2.1845,228.6,228.57,2.1847]
[1733951483975,2.1845,228.6,228.56,2.1848]
[1733951485374,4.3445,228.6,228.56,2.1848]
[1733951485880,4.3445,228.6,228.57,2.1847]
[1733951486074,4.3445,228.6,228.49,2.16]
[1733951486380,4.3445,228.6,228.55,6.44275695]
[1733951486381,2.1846,228.59,228.55,6.44275695]
[1733951487683,2.1846,228.59,228.56,2.1848]
[1733951488283,2.16,228.6,228.58,2.1846]
[1733951492290,2.16,228.6,228.59,2.1845]
[1733951492484,8.62695695,228.63,228.57,6.44275695]
[1733951492485,6.44275695,228.63,228.57,6.44275695]
[1733951492777,6.44275695,228.65,228.57,6.44275695]
[1733951492983,2.16,228.64,228.59,6.44275695]
[1733951493386,2.1839,228.66,228.61,2.1843]
[1733951493581,2.16,228.65,228.61,2.1843]
[1733951494082,2.16,228.67,228.64,2.184]
[1733951495291,2.16,228.67,228.65,2.184]
[1733951496890,2.1836,228.69,228.63,6.44275695]
[1733951497095,4.3436,228.69,228.66,2.1839]
[1733951497691,2.16,228.69,228.67,2.1837]
[1733951498992,6.44275695,228.68,228.65,2.1839]
[1733951499287,6.44275695,228.68,228.61,6.44275695]
[1733951499486,6.44275695,228.68,228.64,2.184]
[1733951499487,8.62645695,228.68,228.64,2.184]
[1733951499693,6.44275695,228.68,228.64,2.184]
[1733951500094,2.1838,228.67,228.64,2.184]
[1733951510499,6.44275695,228.68,228.62,6.44275695]
[1733951510703,6.44275695,228.64,228.58,6.44275695]
[1733951510905,8.60275695,228.64,228.58,6.44275695]
[1733951511705,2.1843,228.62,228.59,2.1845]
[1733951512006,2.16,228.64,228.59,8.62725695]
[1733951512806,2.1842,228.63,228.59,8.62725695]
[1733951516705,4.3442,228.63,228.59,8.62725695]
[1733951521910,2.16,228.63,228.59,6.44275695]
[1733951522110,2.16,228.63,228.6,2.1844]
[1733951522811,4.3442,228.63,228.6,2.1844]
[1733951525316,2.1842,228.63,228.61,6.44275695]
[1733951525614,2.1842,228.63,228.6,2.1844]
[1733951525615,4.3442,228.63,228.6,2.1844]
[1733951528414,4.3442,228.63,228.59,8.62725695]
[1733951529720,4.3442,228.63,228.6,2.1844]
[1733951530815,6.44275695,228.66,228.61,6.44275695]
[1733951531121,2.16,228.65,228.63,6.44275695]
[1733951531420,2.1839,228.66,228.63,8.62685695]
[1733951533218,2.16,228.68,228.65,6.44275695]
[1733951533219,2.1838,228.67,228.65,6.44275695]
[1733951533619,2.16,228.68,228.65,6.44275695]
[1733951534118,2.1839,228.67,228.65,6.44275695]
[1733951534912,2.1839,228.67,228.64,2.184]
[1733951535114,2.1839,228.66,228.63,6.44275695]
[1733951536223,2.1839,228.66,228.63,8.62685695]
[1733951536720,2.16,228.68,228.65,6.44275695]
[1733951537621,6.44275695,228.7,228.65,6.44275695]
[1733951537825,2.16,228.68,228.65,6.44275695]
[1733951538126,2.16,228.68,228.64,2.184]
[1733951538620,2.1838,228.67,228.64,2.184]
[1733951540132,6.44275695,228.66,228.58,1.3738]
[1733951540330,6.44275695,228.66,228.6,6.44275695]
[1733951540633,2.1841,228.65,228.61,2.1843]
[1733951541532,2.1841,228.65,228.61,8.62705695]
[1733951542829,2.1839,228.66,228.62,2.1842]
[1733951543335,2.1838,228.67,228.63,8.62695695]
[1733951544033,2.1838,228.67,228.63,2.1842]
[1733951545240,6.44275695,228.65,228.56,1.351]
[1733951545533,6.44275695,228.63,228.58,6.44275695]
[1733951545830,2.16,228.62,228.58,6.44275695]
[1733951546637,4.3443,228.62,228.59,2.1845]
[1733951552037,4.3443,228.62,228.58,6.44275695]
[1733951552340,4.3443,228.62,228.59,47.98016214]
[1733951552534,4.3443,228.62,228.6,4.74571747]
[1733951552742,4.3443,228.62,228.59,24.25157477]
[1733951552936,4.3443,228.62,228.6,4.74554614]
[1733951553137,4.3443,228.62,228.59,24.25157477]
[1733951553443,4.3443,228.62,228.58,6.44275695]
[1733951557946,2.16,228.62,228.58,6.44275695]
[1733951558241,2.1844,228.61,228.58,6.44275695]
[1733951560545,2.1844,228.61,228.57,2.1847]
[1733951561843,6.44275695,228.61,228.55,6.06289369]
[1733951562053,6.44275695,228.57,228.51,6.06289369]
[1733951562244,2.16,228.56,228.5,12.50565064]
[1733951562552,2.16,228.56,228.51,4.74297948]
[1733951562847,2.16,228.56,228.5,6.44275695]
[1733951563247,2.16,228.56,228.51,10.80372212]
[1733951563541,2.16,228.56,228.52,4.74082843]
[1733951563737,2.16,228.56,228.51,6.06289369]
[1733951563942,2.16,228.56,228.52,4.74081648]
[1733951564140,6.44275695,228.55,228.51,6.06289369]
[1733951564437,6.44275695,228.55,228.48,6.44275695]
[1733951564438,6.44275695,228.53,228.48,6.06289369]
[1733951564647,6.44275695,228.53,228.49,4.73945028]
[1733951564839,6.44275695,228.53,228.48,6.06289369]
[1733951565046,6.44275695,228.53,228.49,4.73945217]
[1733951565245,6.44275695,228.53,228.47,6.06289369]
[1733951565846,2.1853,228.52,228.47,6.06289369]
[1733951566149,2.16,228.51,228.47,6.06289369]
[1733951566349,2.16,228.51,228.46,12.50565064]
[1733951566650,4.3453,228.51,228.48,6.44275695]
[1733951567348,2.1852,228.53,228.48,8.62835695]
[1733951567548,2.16,228.51,228.48,8.62835695]
[1733951568349,2.185,228.54,228.5,6.44275695]
[1733951568543,2.16,228.53,228.5,6.44275695]
[1733951569848,2.16,228.53,228.5,8.62815695]
[1733951570047,2.1849,228.55,228.5,2.1854]
[1733951570354,2.16,228.54,228.52,6.44275695]
[1733951570753,2.16,228.56,228.52,8.62785695]
[1733951570955,2.16,228.56,228.54,6.44275695]
[1733951571151,2.16,228.58,228.54,6.44275695]
[1733951571656,2.16,228.58,228.56,6.44275695]
[1733951572559,2.16,228.58,228.56,8.62755695]
[1733951573658,2.1844,228.6,228.56,8.62755695]
[1733951573860,2.16,228.59,228.56,6.44275695]
[1733951574255,2.16,228.59,228.55,2.1849]
[1733951574460,8.60275695,228.59,228.55,2.1849]
[1733951574660,2.16,228.59,228.55,2.1849]
[1733951576262,4.3445,228.59,228.55,2.1849]
[1733951576763,2.16,228.59,228.56,2.1848]
[1733951578858,2.16,228.6,228.58,2.1846]
[1733951580062,2.16,228.6,228.57,2.1847]
[1733951582158,8.62715695,228.61,228.57,2.1847]
[1733951582465,2.16,228.6,228.57,2.1847]
[1733951583968,4.3444,228.6,228.57,2.1847]
[1733951584561,4.3444,228.6,228.54,12.50565064]
[1733951584562,2.16,228.6,228.54,12.50565064]
[1733951584863,6.44275695,228.59,228.55,4.73749317]
[1733951585061,6.44275695,228.59,228.52,12.50565064]
[1733951585254,2.16,228.6,228.52,2.1851]
[1733951585255,6.44275695,228.55,228.52,2.1851]
[1733951585459,8.60275695,228.55,228.48,24.25157477]
[1733951585763,2.1852,228.53,228.5,2.1853]
[1733951586563,8.60275695,228.55,228.49,6.44275695]
[1733951586861,2.185,228.54,228.51,2.1853]
[1733951590362,2.185,228.54,228.51,8.62805695]
[1733951590666,2.16,228.55,228.51,6.44275695]
[1733951590877,4.3449,228.55,228.52,2.1852]
[1733951591963,2.1848,228.57,228.51,6.44275695]
[1733951592164,2.16,228.58,228.55,6.44275695]
[1733951592863,2.16,228.58,228.56,2.1848]
[1733951593970,2.16,228.58,228.55,6.44275695]
[1733951594269,4.3447,228.58,228.55,8.62765695]
[1733951594469,2.16,228.58,228.55,6.44275695]
[1733951594669,2.16,228.58,228.56,2.1848]
[1733951595372,2.16,228.58,228.57,6.44275695]
[1733951595670,2.16,228.58,228.56,2.1848]
[1733951596373,2.16,228.61,228.57,8.62745695]
[1733951596669,2.16,228.61,228.57,2.1847]
[1733951596876,4.3444,228.61,228.57,2.1847]
[1733951597368,2.16,228.6,228.57,2.1847]
[1733951597570,2.16,228.6,228.57,8.62735695]
[1733951598168,2.16,228.6,228.58,2.1846]
[1733951600077,2.1842,228.63,228.59,2.1845]
[1733951600278,2.14,228.63,228.57,12.52075409]
[1733951600471,2.14,228.63,228.58,10.81738409]
[1733951600676,2.14,228.63,228.6,2.1844]
[1733951601678,4.3242,228.63,228.6,2.1844]
[1733951602578,2.14,228.63,228.58,6.07799714]
[1733951602779,2.14,228.63,228.61,2.1843]
[1733951603376,4.3242,228.63,228.6,2.1844]
[1733951603575,11.81118129,228.66,228.59,6.44275695]
[1733951603784,11.81118129,228.66,228.63,2.1841]
[1733951603785,2.14,228.66,228.63,2.1841]
[1733951604089,4.3239,228.67,228.61,6.44275695]
[1733951604288,6.44275695,228.66,228.61,6.44275695]
[1733951604483,6.44275695,228.66,228.63,2.1841]
[1733951604484,8.62665695,228.66,228.63,2.1841]
[1733951604682,10.76665695,228.66,228.63,2.1841]
[1733951605591,6.44275695,228.64,228.61,6.07799714]
[1733951605891,6.44275695,228.64,228.57,30.75474553]
[1733951606187,6.44275695,228.64,228.58,4.73572098]
[1733951606387,2.1844,228.61,228.58,2.1846]
[1733951606593,2.14,228.66,228.59,6.44275695]
[1733951606792,2.1842,228.63,228.59,8.62725695]
[1733951607187,6.44275695,228.63,228.59,2.1845]
[1733951608599,2.1843,228.62,228.59,2.1845]
[1733951608903,6.44275695,228.65,228.57,6.44275695]
[1733951609197,2.1842,228.63,228.59,6.44275695]
[1733951609794,10.76675695,228.65,228.61,2.1843]
[1733951610296,4.324,228.65,228.61,2.1843]
[1733951610700,4.324,228.65,228.62,2.1842]
[1733951612609,5.11930344,228.69,228.61,6.44275695]
[1733951612797,2.14,228.66,228.61,6.44275695]
[1733951613602,2.14,228.66,228.63,2.1841]
[1733951614802,2.14,228.66,228.62,2.1842]
[1733951615100,2.14,228.66,228.61,6.44275695]
[1733951615299,8.62645695,228.68,228.63,2.1841]
[1733951615508,2.14,228.67,228.61,6.44275695]
[1733951615808,8.62645695,228.68,228.65,2.184]
[1733951616006,10.76645695,228.68,228.65,2.184]
[1733951616899,10.76645695,228.68,228.61,12.52075409]
[1733951617106,10.76645695,228.68,228.64,2.184]
[1733951617500,10.76645695,228.68,228.61,6.44275695]
[1733951617501,8.58275695,228.68,228.61,6.44275695]
[1733951617705,10.76665695,228.68,228.61,6.44275695]
[1733951618402,2.184,228.67,228.63,2.1844]
[1733951618611,2.184,228.67,228.61,6.44275695]
[1733951619607,2.184,228.67,228.64,2.1842]
[1733951620614,8.62695695,228.66,228.62,2.1845]
[1733951621617,2.1842,228.65,228.62,2.1845]
[1733951622216,6.44275695,228.66,228.6,6.44275695]
[1733951622512,8.62705695,228.64,228.58,12.52075409]
[1733951622716,8.62705695,228.64,228.59,4.73204478]
[1733951622914,8.62705695,228.64,228.58,12.52075409]
[1733951622915,8.62705695,228.64,228.6,2.1847]
[1733951623909,2.1843,228.64,228.6,2.1847]
[1733951624310,2.1843,228.64,228.61,2.1845]
[1733951627309,8.58275695,228.68,228.6,6.44275695]
[1733951627616,8.58275695,228.68,228.62,6.44275695]
[1733951627617,2.14,228.68,228.62,6.44275695]
[1733951628016,2.14,228.68,228.62,12.52075409]
[1733951628218,4.324,228.68,228.64,2.1842]
[1733951629412,10.76675695,228.68,228.64,2.1842]
[1733951631623,2.1841,228.66,228.62,6.07799714]
[1733951632019,2.1841,228.66,228.63,2.1843]
[1733951632415,8.62715695,228.64,228.61,24.31198858]
[1733951632721,8.62715695,228.64,228.59,48.62397718]
[1733951632722,6.44275695,228.64,228.6,6.07799714]
[1733951632916,8.58275695,228.64,228.61,4.74555555]
[1733951633118,2.1844,228.63,228.6,8.26259714]
[1733951633521,2.1844,228.63,228.61,4.7464124]
[1733951633715,2.1844,228.63,228.6,8.26259714]
[1733951633914,2.1844,228.63,228.61,4.74642491]
[1733951634215,2.1844,228.63,228.6,8.26259714]
[1733951634414,2.1844,228.63,228.61,4.74641295]
[1733951634614,2.1844,228.63,228.6,8.26259714]
[1733951634823,2.1844,228.63,228.61,4.74731913]
[1733951635020,2.1844,228.63,228.6,8.26259714]
[1733951635224,2.1844,228.63,228.61,4.74731913]
[1733951635424,2.1844,228.63,228.6,8.26259714]
[1733951635621,10.76705695,228.64,228.61,4.74741055]
[1733951635816,10.76705695,228.64,228.6,8.26259714]
[1733951636027,10.76705695,228.64,228.61,4.74741055]
[1733951636220,10.76705695,228.64,228.6,8.26259714]
[1733951636427,10.76705695,228.64,228.61,10.8254177]
[1733951636626,10.76705695,228.64,228.61,6.07799714]
[1733951637318,10.76705695,228.64,228.6,8.26259714]
[1733951637516,10.76705695,228.64,228.61,4.74737968]
[1733951637721,10.76705695,228.64,228.6,8.26259714]
[1733951637920,10.76705695,228.64,228.61,4.7473793]
[1733951638125,10.76705695,228.64,228.6,8.26259714]
[1733951638324,10.76705695,228.64,228.61,4.74735988]
[1733951638630,10.76705695,228.64,228.61,2.1846]
[1733951639729,10.76705695,228.64,228.61,8.26259714]
[1733951641325,8.58275695,228.64,228.61,6.07799714]
[1733951641526,2.1842,228.66,228.61,30.75474553]
[1733951641727,2.14,228.65,228.63,6.07799714]
[1733951642027,4.3242,228.66,228.64,4.74718002]
[1733951642328,4.3242,228.66,228.63,24.31198858]
[1733951642522,2.184,228.68,228.65,2.1842]
[1733951642729,2.14,228.66,228.65,2.1842]
[1733951642929,2.14,228.67,228.65,10.8248089]
[1733951643130,2.14,228.67,228.65,8.26219714]
[1733951643829,2.14,228.67,228.66,4.74676742]
[1733951644229,2.14,228.67,228.64,8.26229714]
[1733951644635,2.14,228.67,228.65,4.74680387]
[1733951644835,2.14,228.67,228.64,8.26229714]
[1733951645028,2.14,228.67,228.65,4.74678459]
[1733951645229,2.14,228.67,228.64,8.26229714]
[1733951645433,2.14,228.67,228.65,13.00888213]
[1733951645734,2.14,228.67,228.66,4.74627069]
[1733951646531,2.14,228.67,228.65,8.26209714]
[1733951646737,2.14,228.67,228.66,4.7457817]
[1733951647035,2.14,228.67,228.65,8.26209714]
[1733951648333,2.14,228.67,228.66,4.74534084]
[1733951649627,2.1839,228.68,228.66,4.74534084]
[1733951650135,2.1839,228.68,228.65,8.26209714]
[1733951650535,2.1839,228.68,228.65,2.1841]
[1733951651041,2.14,228.69,228.65,2.1841]
[1733951651232,4.3238,228.69,228.65,2.1841]
[1733951651435,4.3238,228.69,228.65,8.26209714]
[1733951651736,2.1838,228.69,228.65,8.26209714]
[1733951651933,2.14,228.69,228.66,6.92795123]
[1733951652139,2.14,228.69,228.66,2.184]
[1733951652541,4.3238,228.69,228.66,2.184]
[1733951652743,2.1838,228.69,228.66,2.184]
[1733951653545,2.1837,228.71,228.68,6.44275695]
[1733951654345,2.14,228.73,228.69,4.74245297]
[1733951654547,45.61048185,228.74,228.68,12.52075409]
[1733951654744,47.75048185,228.74,228.68,12.52075409]
[1733951654940,47.75048185,228.74,228.69,4.74084552]
[1733951655241,47.75048185,228.74,228.68,12.52075409]
[1733951655544,47.75048185,228.74,228.68,6.44275695]
[1733951655738,2.1835,228.72,228.69,2.1838]
[1733951658140,47.75048185,228.74,228.68,6.44275695]
[1733951658141,2.1834,228.73,228.68,6.44275695]
[1733951658939,47.75048185,228.74,228.7,6.44275695]
[1733951658940,4.3233,228.74,228.7,6.44275695]
[1733951659841,4.3233,228.74,228.68,18.23399144]
[1733951659842,6.44275695,228.71,228.68,24.31198858]
[1733951660044,6.44275695,228.73,228.69,4.73455539]
[1733951660339,6.44275695,228.73,228.67,30.75474553]
[1733951660544,6.44275695,228.73,228.68,4.73456876]
[1733951660745,6.44275695,228.73,228.67,12.52075409]
[1733951660945,6.44275695,228.73,228.68,4.73397802]
[1733951661149,6.44275695,228.73,228.67,12.52075409]
[1733951661350,6.44275695,228.73,228.68,4.73397802]
[1733951661649,2.14,228.74,228.69,6.44275695]
[1733951662750,2.1834,228.73,228.7,2.1837]
[1733951668152,8.62615695,228.73,228.7,2.1837]
[1733951668353,6.44275695,228.71,228.65,24.31198858]
[1733951668552,6.44275695,228.71,228.66,4.73168975]
[1733951668750,6.44275695,228.69,228.64,6.07799714]
[1733951668954,2.1841,228.66,228.63,2.1843]
[1733951670054,6.44275695,228.69,228.62,12.52075409]
[1733951670353,6.44275695,228.69,228.64,2.1843]
[1733951670354,2.184,228.67,228.64,2.1843]
[1733951671857,2.184,228.67,228.62,12.52075409]
[1733951671858,6.44275695,228.67,228.62,12.52075409]
[1733951672055,6.44275695,228.67,228.63,4.73505304]
[1733951672251,6.44275695,228.65,228.6,6.07799714]
[1733951672455,2.1845,228.62,228.6,6.07799714]
[1733951672848,2.1845,228.62,228.59,6.07799714]
[1733951673049,2.1845,228.62,228.58,6.07799714]
[1733951673255,2.1845,228.62,228.59,4.73606412]
[1733951673455,2.1846,228.61,228.57,6.07799714]
[1733951673754,2.1846,228.61,228.57,2.1849]
[1733951674855,2.1847,228.6,228.57,2.1849]
[1733951676651,8.62735695,228.61,228.57,2.1849]
[1733951682561,2.1845,228.63,228.59,2.1847]
[1733951683158,4.3245,228.63,228.59,2.1847]
[1733951683460,2.1845,228.62,228.59,2.1847]
[1733951684063,2.14,228.63,228.6,2.1846]
[1733951685563,4.3244,228.63,228.6,2.1846]
[1733951689169,1.3886,228.71,228.62,6.44275695]
[1733951689170,2.14,228.66,228.62,6.44275695]
[1733951689472,4.3241,228.67,228.62,6.44275695]
[1733951689760,2.1841,228.67,228.62,6.44275695]
[1733951690465,2.14,228.68,228.62,6.44275695]
[1733951690668,4.3239,228.68,228.64,2.1842]
[1733951691064,2.1839,228.68,228.64,2.1842]
[1733951691370,4.3239,228.68,228.64,2.1842]
[1733951692066,2.1841,228.66,228.63,2.1844]
[1733951698466,1.3886,228.71,228.64,6.44275695]
[1733951698665,1.3265,228.8,228.69,6.44275695]
[1733951698876,8.62585695,228.77,228.72,2.1835]
[1733951700171,2.183,228.78,228.74,2.1832]
[1733951700375,2.14,228.77,228.73,6.44275695]
[1733951700568,6.44275695,228.79,228.73,6.44275695]
[1733951700768,8.58275695,228.79,228.76,2.1831]
[1733951700970,2.14,228.79,228.75,6.0656124]
[1733951701181,2.14,228.79,228.76,4.73217504]
[1733951701375,7.51005011,228.81,228.76,2.1831]
[1733951701578,8.58275695,228.83,228.75,30.70520656]
[1733951701781,8.58275695,228.83,228.76,10.79386195]
[1733951702081,8.58275695,228.83,228.76,6.0656124]
[1733951702273,10.76525695,228.83,228.78,2.1828]
[1733951702575,8.58275695,228.83,228.77,6.44275695]
[1733951702972,8.58275695,228.83,228.79,2.1828]
[1733951703873,8.58275695,228.83,228.8,2.1827]
[1733951704077,2.14,228.83,228.8,2.1827]
[1733951705179,2.14,228.83,228.79,6.44275695]
[1733951705576,2.14,228.83,228.82,2.1826]
[1733951706376,2.14,228.83,228.8,2.1827]
[1733951707180,2.14,228.83,228.74,6.0656124]
[1733951707181,8.58275695,228.83,228.77,2.183]
[1733951708383,2.1827,228.82,228.77,2.183]
[1733951709275,2.1827,228.82,228.75,6.44275695]
[1733951709483,2.1827,228.82,228.78,2.1829]
[1733951711086,6.44275695,228.81,228.71,1.4038]
[1733951711281,6.44275695,228.81,228.73,6.44275695]
[1733951711986,2.1828,228.8,228.76,2.1831]
[1733951712981,8.62565695,228.81,228.73,6.44275695]
[1733951713581,2.183,228.8,228.76,2.1833]
[1733951715283,2.1831,228.79,228.76,2.1833]
[1733951715485,6.44275695,228.79,228.69,1.3371]
[1733951715788,6.44275695,228.77,228.73,2.1836]
[1733951716086,4.3234,228.76,228.73,2.1836]
[1733951716891,2.14,228.76,228.73,6.44275695]
[1733951717090,2.14,228.8,228.75,6.44275695]
[1733951717383,4.323,228.8,228.77,2.1832]
[1733951718190,4.323,228.8,228.76,2.1833]
[1733951720486,6.44275695,228.77,228.71,6.44275695]
[1733951721393,2.1834,228.76,228.71,6.44275695]
[1733951721887,2.1834,228.76,228.72,2.1837]
[1733951722690,2.1834,228.76,228.73,2.1836]
[1733951722897,2.1833,228.77,228.73,2.1836]
[1733951723195,6.44275695,228.79,228.73,6.44275695]
[1733951723390,6.44275695,228.79,228.74,2.1835]
[1733951724794,2.1833,228.77,228.74,2.1835]
[1733951725494,2.1834,228.76,228.72,2.1836]
[1733951726691,2.1834,228.76,228.73,2.1836]
[1733951727988,2.1836,228.74,228.71,2.1838]
[1733951728394,2.1836,228.74,228.69,12.50836935]
[1733951728694,2.1836,228.74,228.71,2.1838]
[1733951729596,2.1837,228.73,228.69,8.2495124]
[1733951729896,2.1837,228.73,228.7,4.72664724]
[1733951730089,2.1837,228.73,228.69,6.0656124]
[1733951730494,2.1837,228.73,228.7,6.91334875]
[1733951730696,2.1837,228.73,228.7,2.1839]
[1733951731595,2.1837,228.73,228.71,4.73274895]
[1733951731791,2.1837,228.73,228.7,8.2495124]
[1733951731988,2.1837,228.73,228.71,4.73276886]
[1733951732194,2.1837,228.73,228.7,8.2495124]
[1733951732395,2.1837,228.73,228.71,4.73276886]
[1733951732594,2.1837,228.73,228.71,6.0656124]
[1733951734498,2.1837,228.73,228.7,26.44634961]
[1733951734700,2.1837,228.73,228.71,4.73569381]
[1733951735000,2.1837,228.73,228.7,26.44634961]
[1733951735298,2.1837,228.73,228.71,4.73571766]
[1733951735499,2.1837,228.73,228.7,26.44634961]
[1733951735692,2.1837,228.73,228.71,4.73532317]
[1733951735895,2.1837,228.73,228.7,26.44634961]
[1733951736200,2.1837,228.73,228.71,4.73532317]
[1733951736396,2.1837,228.73,228.7,8.2495124]
[1733951737597,2.1837,228.73,228.7,2.1839]
[1733951738205,2.1837,228.73,228.69,8.2496124]
[1733951738501,2.1838,228.71,228.68,6.0656124]
[1733951738702,2.1838,228.71,228.67,24.26244961]
[1733951738999,2.1838,228.71,228.68,4.73460878]
[1733951739202,2.1838,228.71,228.67,8.2497124]
[1733951739610,2.1838,228.71,228.68,4.7344768]
[1733951739904,2.1838,228.71,228.68,2.1841]
[1733951741502,2.1838,228.72,228.69,2.184]
[1733951741896,1.3259,228.84,228.7,11.17776956]
[1733951742100,1.3259,228.84,228.77,2.1833]
[1733951742396,6.44275695,228.82,228.77,2.1833]
[1733951742596,2.1829,228.81,228.78,2.1832]
[1733951742794,2.14,228.83,228.77,6.44275695]
[1733951743398,2.14,228.83,228.79,6.44275695]
[1733951743604,2.14,228.83,228.8,10.80044657]
[1733951743901,2.14,228.83,228.81,2.1829]
[1733951744202,2.14,228.83,228.8,6.0656124]
[1733951744397,8.62565695,228.82,228.79,6.0656124]
[1733951744593,8.62565695,228.82,228.77,8.2488124]
[1733951744794,8.62565695,228.82,228.78,4.73422361]
[1733951744995,4.3227,228.83,228.8,2.183]
[1733951745197,2.14,228.83,228.8,2.183]
[1733951745699,2.14,228.83,228.81,2.1829]
[1733951745997,6.44275695,228.84,228.81,2.1829]
[1733951746905,6.44275695,228.84,228.78,12.50836935]
[1733951746906,6.44275695,228.84,228.8,2.183]
[1733951747302,8.62535695,228.84,228.8,2.183]
[1733951755215,2.1828,228.82,228.78,6.44275695]
[1733951755409,6.44275695,228.84,228.78,6.44275695]
[1733951755907,6.44275695,228.84,228.78,2.1832]
[1733951756616,2.1829,228.82,228.78,2.1832]
[1733951757414,6.44275695,228.82,228.76,6.0656124]
[1733951757610,6.44275695,228.82,228.75,12.50836935]
[1733951757814,6.44275695,228.82,228.75,6.44275695]
[1733951758016,6.44275695,228.8,228.74,26.44594961]
[1733951758313,2.12,228.79,228.75,4.72888164]
[1733951758514,2.12,228.79,228.74,8.2491124]
[1733951758816,2.12,228.79,228.74,2.1835]
[1733951759019,2.1832,228.78,228.74,2.1835]
[1733951761718,2.1832,228.78,228.74,8.62625695]
[1733951762313,2.1832,228.78,228.74,6.44275695]
[1733951762513,4.3031,228.79,228.74,6.44275695]
[1733951762709,4.3031,228.79,228.76,6.44275695]
[1733951764516,4.3031,228.79,228.76,8.62605695]
[1733951765417,2.12,228.79,228.76,8.62605695]
[1733951765623,2.12,228.79,228.77,2.1832]
[1733951766028,2.12,228.79,228.74,30.70520656]
[1733951766321,2.12,228.79,228.75,4.72923688]
[1733951766527,4.3031,228.79,228.75,2.1834]
[1733951766823,8.56275695,228.79,228.74,12.50836935]
[1733951767020,8.56275695,228.79,228.73,24.26244961]
[1733951767216,8.56275695,228.79,228.74,4.72984769]
[1733951767420,2.1833,228.77,228.73,26.44604961]
[1733951767621,8.62605695,228.77,228.73,8.2492124]
[1733951767824,8.62605695,228.77,228.73,2.1836]
[1733951769620,8.62605695,228.77,228.74,4.73148119]
[1733951769827,8.62605695,228.77,228.74,2.1835]
[1733951770423,2.1833,228.77,228.74,2.1835]
[1733951771823,2.1832,228.78,228.74,2.1835]
[1733951772924,2.1832,228.78,228.74,8.2491124]